fUSD/lending_fUSD_20240217
["ID","MTS","AMOUNT","RATE_DAILY","PERIOD"]
[314280584,1708147855507,-500.0,0.00049863,60]
[314280585,1708147855516,-627.86918018,0.00049863,60]
[314280586,1708147855525,-519.51,0.00049863,60]
[314280587,1708147855534,-500.0,0.00049863,60]
[314280588,1708147855543,-500.0,0.00049863,60]
[314280589,1708147855552,-1634.88,0.00049863,60]
[314280590,1708147855561,-500.0,0.00049863,60]
[314280591,1708147855570,-500.0,0.00049863,60]
[314280592,1708147855579,-556.45175921,0.00049863,60]
[314280593,1708147855589,-500.0,0.00049863,60]
[314280594,1708147855598,-937.4,0.00049863,60]
[314280595,1708147855607,-362.38763825,0.00049863,60]
[314280596,1708147855617,-431.08318666,0.00049863,60]
[314280597,1708147855626,-500.0,0.00049863,60]
[314280598,1708147855635,-500.0,0.00049863,60]
[314280599,1708147855644,-2129.66,0.00049863,60]
[314280600,1708147855653,-500.0,0.00049863,60]
[314280601,1708147855662,-500.0,0.00049863,60]
[314280602,1708147855671,-500.0,0.00049863,60]
[314280603,1708147855681,-577.85,0.00049863,60]
[314280604,1708147855690,-593.311361,0.00049863,120]
[314280605,1708147855699,-477.0009455,0.00049863,60]
[314280606,1708147855708,-1182.25,0.00049863,60]
[314280607,1708147855718,-593.311361,0.00049863,120]
[314280608,1708147855727,-500.0,0.00049863,60]
[314280609,1708147855820,-500.0,0.00049863,60]
[314280610,1708147855829,-500.0,0.00049863,60]
[314280611,1708147855839,-500.0,0.00049863,60]
[314280612,1708147855849,-500.0,0.00049863,60]
[314280613,1708147855859,-1111.25,0.00049863,60]
[314280614,1708147855868,-1935.87,0.00049863,60]
[314280615,1708147855877,-692.92,0.00049863,60]
[314280616,1708147855886,-412.91214376,0.00049863,60]
[314280617,1708147855896,-554.4,0.00049863,60]
[314280618,1708147855907,-879.44,0.00049863,60]
[314280619,1708147855916,-500.0,0.00049863,60]
[314280620,1708147855926,-500.0,0.00049863,60]
[314280621,1708147855935,-500.0,0.00049863,60]
[314280622,1708147855945,-500.0,0.00049863,60]
[314280623,1708147855954,-1145.97,0.00049863,60]
[314280624,1708147855963,-500.0,0.00049863,60]
[314280625,1708147855974,-220.92114466,0.00049863,60]
[314280626,1708147855984,-500.0,0.00049863,60]
[314280627,1708147855994,-500.0,0.00049863,60]
[314280628,1708147856003,-500.0,0.00049863,60]
[314280629,1708147856013,-500.0,0.00049863,60]
[314280630,1708147856022,-500.0,0.00049863,60]
[314280631,1708147856032,-548.51,0.00049863,60]
[314280632,1708147856042,-718.43,0.00049863,60]
[314280633,1708147856051,-500.0,0.00049863,60]
[314280634,1708147856061,-151.148843,0.00049863,2]
[314280635,1708147856072,-5123.64,0.00049863,60]
[314280636,1708147856082,-151.148843,0.00049863,2]
[314280637,1708147856091,-312.394116,0.00049863,120]
[314280638,1708147856101,-500.0,0.00049863,60]
[314280639,1708147856110,-500.0,0.00049863,60]
[314280640,1708147856120,-312.394116,0.00049863,120]
[314280641,1708147856129,-500.0,0.00049863,60]
[314280642,1708147856139,-500.0,0.00049863,60]
[314280643,1708147856148,-500.0,0.00049863,60]
[314280644,1708147856158,-738.56,0.00049863,60]
[314280645,1708147856167,-12479.19,0.00049863,60]
[314280646,1708147856175,-500.0,0.00049863,60]
[314280647,1708147856185,-500.0,0.00049863,2]
[314280648,1708147856194,-500.0,0.00049863,60]
[314280649,1708147856204,-500.0,0.00049863,60]
[314280650,1708147856213,-595.39218851,0.00049863,60]
[314280651,1708147856222,-299.99999901,0.000499,30]
[314280652,1708147856231,-163.70744045,0.000499,30]
[314280653,1708147856241,-163.70744045,0.000499,30]
[314280654,1708147856250,-163.70744045,0.000499,30]
[314280655,1708147856259,-163.70744045,0.000499,30]
[314280656,1708147856268,-163.7,0.000499,30]
[314280657,1708147856277,-167.42827692,0.000499,30]
[314280658,1708147856287,-167.42,0.000499,30]
[314280659,1708147856296,-176.24917744,0.000499,30]
[314280660,1708147856305,-176.24917744,0.000499,30]
[314280661,1708147856314,-176.24,0.000499,30]
[314280662,1708147856323,-152.68550756,0.000499,30]
[314280663,1708147856332,-152.68550756,0.000499,30]
[314280664,1708147856341,-152.68550756,0.000499,30]
[314280665,1708147856350,-152.68,0.000499,30]
[314280666,1708147856359,-198.82261793,0.000499,30]
[314280667,1708147856368,-198.82261793,0.000499,30]
[314280668,1708147856379,-198.82,0.000499,30]
[314280669,1708147856388,-244.0,0.00049911,60]
[314280670,1708147856397,-256.2729031,0.00049966,2]
[314280671,1708147856406,-960.4181098,0.00049966,2]
[314280672,1708147856416,-46278.297276,0.00049966,2]
[314280673,1708147856425,-2042.2491601,0.00049966,2]
[314280674,1708147856433,-11958.193231,0.00049966,2]
[314280675,1708147856443,-2791.8472645,0.00049966,2]
[314280676,1708147856454,-18394.7818653,0.00049966,2]
[314280677,1708147856463,-200.0,0.00049987,79]
[314280678,1708147856472,-200.0,0.00049987,78]
[314280679,1708147856481,-200.0,0.0004999,90]
[314280680,1708147856492,-61508.56625493,0.00049997,2]
[314280681,1708147856501,-306.30113684,0.00049999,90]
[314280682,1708147856510,-197.11653375,0.00049999,120]
[314280683,1708147856520,-208.79475264,0.00049999,120]
[314280684,1708147856529,-258.46685872,0.00049999,120]
[314280685,1708147856538,-500.0,0.00049999,120]
[314280686,1708147856546,-500.0,0.00049999,120]
[314280687,1708147856555,-239.22297176,0.00049999,120]
[314280688,1708147856565,-238.56570963,0.00049999,9]
[314280689,1708147856575,-201.31858058,0.00049999,9]
[314280690,1708147856583,-1041.71183142,0.0005,2]
[314280691,1708147856593,-7789.24566111,0.0005,7]
[314280692,1708147856602,-10000.0,0.0005,25]
[314280693,1708147856611,-4983.0,0.0005,15]
[314280694,1708147856621,-197584.0,0.0005,120]
[314280695,1708147856630,-997318.52281707,0.0005,120]
[314280696,1708147856639,-189.55033239,0.0005,120]
[314280697,1708147856648,-264.38403548,0.0005,60]
[314280698,1708147856657,-446.4068141,0.0005,5]
[314280699,1708147856666,-58612.0,0.0005,9]
[314280700,1708147856676,-2500.0,0.0005,120]
[314280701,1708147856685,-1230.08,0.0005,120]
[314280702,1708147856694,-753.25,0.0005,120]
[314280703,1708147856704,-1773.52936877,0.0005,120]
[314280704,1708147856713,-1000.0,0.0005,15]
[314280705,1708147856723,-300.0,0.0005,50]
[314280706,1708147856732,-358.815988,0.0005,120]
[314280707,1708147856741,-358.815982,0.0005,120]
[314280708,1708147856751,-151.0,0.0005,120]
[314280709,1708147856760,-151.0,0.0005,120]
[314280710,1708147856770,-151.0,0.0005,120]
[314280711,1708147856780,-151.0,0.0005,120]
[314280712,1708147856790,-13112.37165254,0.0005,2]
[314280713,1708147856799,-531.955098,0.0005,120]
[314280714,1708147856810,-531.955098,0.0005,120]
[314280715,1708147856820,-531.955098,0.0005,120]
[314280716,1708147856830,-531.955098,0.0005,120]
[314280717,1708147856840,-758.616133,0.0005,14]
[314280718,1708147856849,-758.616133,0.0005,14]
[314280719,1708147856858,-151.0,0.0005,120]
[314280720,1708147856867,-151.0,0.0005,120]
[314280721,1708147856877,-758.616133,0.0005,14]
[314280722,1708147856886,-758.616133,0.0005,14]
[314280723,1708147856896,-593.311361,0.0005,120]
[314280724,1708147856906,-593.311361,0.0005,120]
[314280725,1708147856915,-593.311361,0.0005,120]
[314280726,1708147856925,-593.311361,0.0005,120]
[314280727,1708147856934,-2000.0,0.0005,120]
[314280728,1708147856944,-200.0,0.0005,30]
[314280729,1708147856953,-151.148843,0.0005,2]
[314280730,1708147856962,-151.148843,0.0005,2]
[314280731,1708147856972,-151.148843,0.0005,2]
[314280732,1708147856982,-151.148838,0.0005,2]
[314280733,1708147856992,-312.394116,0.0005,120]
[314280734,1708147857001,-312.394116,0.0005,120]
[314280735,1708147857010,-312.394116,0.0005,120]
[314280736,1708147857020,-312.394124,0.0005,120]
[314280737,1708147857029,-800.0,0.00050021,30]
[314280738,1708147857038,-1208.0,0.00050088,30]
[314280739,1708147857048,-432.0,0.000501,30]
[314280740,1708147857057,-500.0,0.00050136,60]
[314280741,1708147857066,-500.0,0.00050136,60]
[314280742,1708147857075,-500.0,0.00050136,60]
[314280743,1708147857084,-500.0,0.00050136,60]
[314280744,1708147857093,-500.0,0.00050136,60]
[314280745,1708147857103,-500.0,0.00050136,60]
[314280746,1708147857112,-500.0,0.00050136,60]
[314280747,1708147857121,-526.92,0.00050136,60]
[314280748,1708147857131,-500.0,0.00050136,60]
[314280749,1708147857140,-282.1300424,0.00050136,60]
[314280750,1708147857149,-500.0,0.00050136,60]
[314280751,1708147857158,-500.0,0.00050136,60]
[314280752,1708147857168,-1028.76,0.00050136,2]
[314280753,1708147857177,-500.0,0.00050136,60]
[314280754,1708147857186,-500.0,0.00050136,60]
[314280755,1708147857196,-500.0,0.00050136,60]
[314280756,1708147857205,-150.41033295,0.00050136,2]
[314280757,1708147857215,-500.0,0.00050136,60]
[314280758,1708147857227,-500.0,0.00050136,60]
[314280759,1708147857237,-500.0,0.00050136,60]
[314280760,1708147857246,-500.0,0.00050136,60]
[314280761,1708147857255,-500.0,0.00050136,60]
[314280762,1708147857264,-500.0,0.00050136,60]
[314280763,1708147857273,-629.85,0.00050136,60]
[314280764,1708147857284,-500.0,0.00050136,60]
[314280765,1708147857294,-500.0,0.00050136,2]
[314280766,1708147857303,-500.0,0.00050136,60]
[314280767,1708147857313,-500.0,0.00050136,60]
[314280768,1708147857324,-573.58,0.00050136,60]
[314280769,1708147857334,-500.0,0.00050136,2]
[314280770,1708147857346,-541.18312316,0.00050136,60]
[314280771,1708147857356,-380.49275801,0.00050136,60]
[314280772,1708147857454,-563.05,0.00050136,2]
[314280773,1708147857466,-229.6761137,0.00050136,60]
[314280774,1708147857484,-594.55471162,0.00050136,60]
[314280775,1708147857494,-347.63197119,0.00050136,60]
[314280776,1708147857505,-500.0,0.00050136,60]
[314280777,1708147857516,-500.0,0.00050136,60]
[314280778,1708147857528,-618.81,0.00050136,60]
[314280779,1708147857537,-517.56,0.00050136,60]
[314280780,1708147857548,-500.0,0.00050136,60]
[314280781,1708147857557,-381.13619295,0.00050136,60]
[314280782,1708147857567,-500.0,0.00050136,60]
[314280783,1708147857577,-500.0,0.00050136,60]
[314280784,1708147857586,-500.0,0.00050136,60]
[314280785,1708147857596,-500.0,0.00050136,60]
[314280786,1708147857606,-500.0,0.00050136,60]
[314280787,1708147857616,-500.0,0.00050136,60]
[314280788,1708147857626,-500.0,0.00050136,60]
[314280789,1708147857635,-274.2241288,0.00050136,60]
[314280790,1708147857645,-500.0,0.00050136,60]
[314280791,1708147857655,-1162.21,0.00050136,60]
[314280792,1708147857664,-500.0,0.00050136,60]
[314280793,1708147857674,-500.0,0.00050136,60]
[314280794,1708147857684,-500.0,0.00050136,60]
[314280795,1708147857694,-500.0,0.00050136,60]
[314280796,1708147857703,-150.0,0.00050136,60]
[314280797,1708147857712,-1393.94,0.00050136,60]
[314280798,1708147857726,-500.0,0.00050136,60]
[314280799,1708147857736,-542.07529504,0.00050136,60]
[314280800,1708147857747,-500.0,0.00050136,60]
[314280801,1708147857756,-316.77,0.00050136,60]
[314280802,1708147857766,-500.0,0.00050136,2]
[314280803,1708147857775,-365.88907056,0.00050136,60]
[314280804,1708147857785,-500.0,0.00050136,60]
[314280805,1708147857794,-355.34156987,0.00050136,60]
[314280806,1708147857804,-500.0,0.00050136,60]
[314280807,1708147857813,-500.0,0.00050136,60]
[314280808,1708147857823,-500.0,0.00050136,60]
[314280809,1708147857833,-500.0,0.00050136,60]
[314280810,1708147857843,-500.0,0.00050136,60]
[314280811,1708147857852,-500.0,0.00050136,60]
[314280812,1708147857862,-739.89,0.00050136,60]
[314280813,1708147857872,-469.62317952,0.00050136,60]
[314280814,1708147857883,-316.48286031,0.00050136,60]
[314280815,1708147857893,-1116.16242842,0.00050136,2]
[314280816,1708147857903,-500.0,0.00050136,60]
[314280817,1708147857913,-500.0,0.00050136,60]
[314280818,1708147857924,-972.28,0.00050136,60]
[314280819,1708147857933,-500.0,0.00050136,60]
[314280820,1708147857943,-500.0,0.00050136,60]
[314280821,1708147857953,-500.0,0.00050136,60]
[314280822,1708147857963,-500.0,0.00050136,60]
[314280823,1708147857975,-500.0,0.00050136,60]
[314280824,1708147857985,-500.0,0.00050136,60]
[314280825,1708147857994,-523.96,0.00050136,60]
[314280826,1708147858005,-500.0,0.00050136,60]
[314280827,1708147858014,-500.0,0.00050136,60]
[314280828,1708147858024,-500.0,0.00050136,60]
[314280829,1708147858034,-500.0,0.00050136,60]
[314280830,1708147858044,-500.0,0.00050136,60]
[314280831,1708147858054,-350.28728182,0.00050136,60]
[314280832,1708147858063,-500.0,0.00050136,60]
[314280833,1708147858073,-500.0,0.00050136,60]
[314280834,1708147858082,-500.0,0.00050136,60]
[314280835,1708147858092,-500.0,0.00050136,60]
[314280836,1708147858101,-500.0,0.00050136,60]
[314280837,1708147858110,-854.01,0.00050136,60]
[314280838,1708147858120,-500.0,0.00050136,60]
[314280839,1708147858129,-500.0,0.00050136,7]
[314280840,1708147858138,-893.76,0.00050136,60]
[314280841,1708147858147,-1165.59,0.00050136,60]
[314280842,1708147858157,-1495.02,0.00050136,60]
[314280843,1708147858166,-500.0,0.00050136,60]
[314280844,1708147858176,-500.0,0.00050136,60]
[314280845,1708147858185,-500.0,0.00050136,60]
[314280846,1708147858194,-500.0,0.00050136,60]
[314280847,1708147858204,-500.0,0.00050136,60]
[314280848,1708147858213,-500.0,0.00050136,60]
[314280849,1708147858225,-500.0,0.00050136,60]
[314280850,1708147858234,-500.0,0.00050136,60]
[314280851,1708147858244,-623.71211797,0.00050136,60]
[314280852,1708147858253,-500.0,0.00050136,60]
[314280853,1708147858263,-500.0,0.00050136,60]
[314280854,1708147858272,-500.0,0.00050136,60]
[314280855,1708147858282,-500.0,0.00050136,60]
[314280856,1708147858291,-636.17,0.00050136,60]
[314280857,1708147858301,-500.0,0.00050136,60]
[314280858,1708147858310,-5024.34,0.00050136,60]
[314280859,1708147858319,-500.0,0.00050136,60]
[314280860,1708147858329,-602.99,0.00050136,60]
[314280861,1708147858338,-500.0,0.00050136,60]
[314280862,1708147858347,-500.0,0.00050136,60]
[314280863,1708147858356,-3136.01,0.00050136,60]
[314280864,1708147858365,-500.0,0.00050136,60]
[314280865,1708147858375,-500.0,0.00050136,60]
[314280866,1708147858387,-500.0,0.00050136,60]
[314280867,1708147858397,-500.0,0.00050136,60]
[314280868,1708147858407,-280.66344346,0.00050136,60]
[314280869,1708147858417,-569.8,0.00050136,60]
[314280870,1708147858427,-500.0,0.00050136,60]
[314280871,1708147858437,-500.0,0.00050136,60]
[314280872,1708147858446,-500.0,0.00050136,60]
[314280873,1708147858457,-500.0,0.00050136,60]
[314280874,1708147858467,-556.89,0.00050136,60]
[314280875,1708147858478,-500.0,0.00050136,60]
[314280876,1708147858487,-500.0,0.00050136,60]
[314280877,1708147858496,-3220.88,0.00050136,60]
[314280878,1708147858505,-500.0,0.00050136,60]
[314280879,1708147858514,-500.0,0.00050136,60]
[314280880,1708147858523,-1210.8,0.00050136,14]
[314280881,1708147858532,-500.0,0.00050136,60]
[314280882,1708147858541,-346.11690516,0.00050136,30]
[314280883,1708147858550,-500.0,0.00050136,60]
[314280884,1708147858560,-500.0,0.00050136,2]
[314280885,1708147858570,-500.0,0.00050136,60]
[314280886,1708147858579,-500.0,0.00050136,60]
[314280887,1708147858588,-500.0,0.00050136,60]
[314280888,1708147858598,-500.0,0.00050136,60]
[314280889,1708147858607,-500.0,0.00050136,60]
[314280890,1708147858616,-1846.34,0.00050136,60]
[314280891,1708147858625,-500.0,0.00050136,60]
[314280892,1708147858634,-500.0,0.00050136,60]
[314280893,1708147858643,-500.0,0.00050136,60]
[314280894,1708147858652,-346.69449062,0.00050136,60]
[314280895,1708147858662,-500.0,0.00050136,60]
[314280896,1708147858671,-783.66,0.00050136,60]
[314280897,1708147858680,-500.0,0.00050136,60]
[314280898,1708147858689,-500.0,0.00050136,60]
[314280899,1708147858698,-622.67,0.00050136,60]
[314280900,1708147858707,-500.0,0.00050136,60]
[314280901,1708147858717,-344.09418387,0.00050136,60]
[314280902,1708147858727,-500.0,0.00050136,60]
[314280903,1708147858736,-476.27057111,0.00050136,60]
[314280904,1708147858746,-594.3296275,0.00050136,60]
[314280905,1708147858755,-500.0,0.00050136,60]
[314280906,1708147858764,-502.24,0.00050136,60]
[314280907,1708147858773,-500.0,0.00050136,60]
[314280908,1708147858782,-873.0,0.00050136,60]
[314280909,1708147858791,-500.0,0.00050136,60]
[314280910,1708147858800,-523.09,0.00050136,60]
[314280911,1708147858810,-500.0,0.00050136,60]
[314280912,1708147858819,-500.0,0.00050136,60]
[314280913,1708147858829,-500.0,0.00050136,60]
[314280914,1708147858838,-500.0,0.00050136,60]
[314280915,1708147858848,-519.51,0.00050136,60]
[314280916,1708147858857,-500.0,0.00050136,60]
[314280917,1708147858866,-500.0,0.00050136,60]
[314280918,1708147858876,-1634.88,0.00050136,60]
[314280919,1708147858885,-500.0,0.00050136,60]
[314280920,1708147858894,-500.0,0.00050136,60]
[314280921,1708147858982,-500.0,0.00050136,60]
[314280922,1708147858995,-937.4,0.00050136,60]
[314280923,1708147859004,-500.0,0.00050136,60]
[314280924,1708147859013,-618.51776051,0.00050136,60]
[314280925,1708147859022,-2129.66,0.00050136,60]
[314280926,1708147859032,-500.0,0.00050136,60]
[314280927,1708147859041,-500.0,0.00050136,60]
[314280928,1708147859051,-500.0,0.00050136,60]
[314280929,1708147859060,-577.85,0.00050136,60]
[314280930,1708147859069,-1182.25,0.00050136,60]
[314280931,1708147859079,-500.0,0.00050136,60]
[314280932,1708147859088,-500.0,0.00050136,60]
[314280933,1708147859097,-500.0,0.00050136,60]
[314280934,1708147859106,-500.0,0.00050136,60]
[314280935,1708147859116,-419.75916695,0.00050136,60]
[314280936,1708147859125,-1111.25,0.00050136,60]
[314280937,1708147859134,-1935.87,0.00050136,60]
[314280938,1708147859143,-692.92,0.00050136,60]
[314280939,1708147859152,-554.4,0.00050136,60]
[314280940,1708147859161,-879.44,0.00050136,60]
[314280941,1708147859170,-500.0,0.00050136,60]
[314280942,1708147859179,-500.0,0.00050136,60]
[314280943,1708147859189,-500.0,0.00050136,60]
[314280944,1708147859198,-500.0,0.00050136,60]
[314280945,1708147859207,-500.0,0.00050136,60]
[314280946,1708147859216,-1145.97,0.00050136,60]
[314280947,1708147859225,-500.0,0.00050136,60]
[314280948,1708147859235,-224.86209847,0.00050136,60]
[314280949,1708147859244,-500.0,0.00050136,60]
[314280950,1708147859253,-500.0,0.00050136,60]
[314280951,1708147859263,-535.1571029,0.00050136,60]
[314280952,1708147859273,-548.51,0.00050136,60]
[314280953,1708147859282,-718.43,0.00050136,60]
[314280954,1708147859291,-500.0,0.00050136,60]
[314280955,1708147859300,-5123.64,0.00050136,60]
[314280956,1708147859309,-420.31261848,0.00050136,60]
[314280957,1708147859318,-500.0,0.00050136,60]
[314280958,1708147859326,-500.0,0.00050136,60]
[314280959,1708147859336,-483.99732461,0.00050136,60]
[314280960,1708147859345,-500.0,0.00050136,60]
[314280961,1708147859354,-738.56,0.00050136,60]
[314280962,1708147859363,-12479.19,0.00050136,60]
[314280963,1708147859372,-500.0,0.00050136,60]
[314280964,1708147859385,-500.0,0.00050136,2]
[314280965,1708147859394,-500.0,0.00050136,60]
[314280966,1708147859403,-500.0,0.00050136,60]
[314280967,1708147859413,-151.021766,0.00050148,65]
[314280968,1708147859422,-531.955098,0.000502,120]
[314280969,1708147859432,-531.955104,0.000502,120]
[314280970,1708147859441,-758.616133,0.000502,14]
[314280971,1708147859450,-151.0,0.000502,120]
[314280972,1708147859460,-758.616127,0.000502,14]
[314280973,1708147859469,-593.311361,0.000502,120]
[314280974,1708147859479,-593.311365,0.000502,120]
[314280975,1708147859488,-1530.62841672,0.00050343,14]
[314280976,1708147859498,-1290.65,0.000504,2]
[314280977,1708147859507,-238.56570963,0.00050409,10]
[314280978,1708147859517,-201.31858058,0.00050409,10]
[314280979,1708147859526,-500.0,0.0005041,60]
[314280980,1708147859535,-500.0,0.0005041,60]
[314280981,1708147859544,-500.0,0.0005041,60]
[314280982,1708147859553,-500.0,0.0005041,60]
[314280983,1708147859562,-500.0,0.0005041,60]
[314280984,1708147859572,-500.0,0.0005041,60]
[314280985,1708147859581,-500.0,0.0005041,60]
[314280986,1708147859590,-526.92,0.0005041,60]
[314280987,1708147859599,-500.0,0.0005041,60]
[314280988,1708147859608,-500.0,0.0005041,60]
[314280989,1708147859617,-262.69236757,0.0005041,60]
[314280990,1708147859626,-1028.76,0.0005041,2]
[314280991,1708147859635,-500.0,0.0005041,60]
[314280992,1708147859644,-189.92571817,0.0005041,60]
[314280993,1708147859653,-500.0,0.0005041,60]
[314280994,1708147859662,-500.0,0.0005041,60]
[314280995,1708147859671,-423.75109487,0.0005041,60]
[314280996,1708147859680,-500.0,0.0005041,60]
[314280997,1708147859689,-500.0,0.0005041,60]
[314280998,1708147859698,-500.0,0.0005041,60]
[314280999,1708147859707,-629.85,0.0005041,60]
[314281000,1708147859717,-500.0,0.0005041,60]
[314281001,1708147859726,-500.0,0.0005041,2]
[314281002,1708147859735,-185.01252315,0.0005041,60]
[314281003,1708147859744,-500.0,0.0005041,60]
[314281004,1708147859753,-500.0,0.0005041,2]
[314281005,1708147859763,-563.05,0.0005041,2]
[314281006,1708147859772,-500.0,0.0005041,60]
[314281007,1708147859781,-500.0,0.0005041,60]
[314281008,1708147859790,-618.81,0.0005041,60]
[314281009,1708147859799,-500.0,0.0005041,60]
[314281010,1708147859810,-610.16237598,0.0005041,60]
[314281011,1708147859819,-583.06975454,0.0005041,7]
[314281012,1708147859829,-500.0,0.0005041,60]
[314281013,1708147859838,-500.0,0.0005041,60]
[314281014,1708147859849,-500.0,0.0005041,60]
[314281015,1708147859858,-500.0,0.0005041,60]
[314281016,1708147859867,-500.0,0.0005041,60]
[314281017,1708147859876,-490.53017721,0.0005041,60]
[314281018,1708147859886,-500.0,0.0005041,60]
[314281019,1708147859895,-1162.21,0.0005041,60]
[314281020,1708147859904,-500.0,0.0005041,60]
[314281021,1708147859913,-500.0,0.0005041,60]
[314281022,1708147859922,-164.17054004,0.0005041,60]
[314281023,1708147859932,-500.0,0.0005041,60]
[314281024,1708147859942,-150.0,0.0005041,60]
[314281025,1708147859951,-1393.94,0.0005041,60]
[314281026,1708147859960,-500.0,0.0005041,60]
[314281027,1708147859970,-500.0,0.0005041,60]
[314281028,1708147859981,-500.0,0.0005041,2]
[314281029,1708147859990,-500.0,0.0005041,60]
[314281030,1708147859999,-511.74471444,0.0005041,60]
[314281031,1708147860010,-500.0,0.0005041,60]
[314281032,1708147860019,-500.0,0.0005041,60]
[314281033,1708147860028,-573.07044182,0.0005041,60]
[314281034,1708147860037,-500.0,0.0005041,60]
[314281035,1708147860047,-500.0,0.0005041,60]
[314281036,1708147860056,-739.89,0.0005041,60]
[314281037,1708147860065,-500.0,0.0005041,60]
[314281038,1708147860076,-500.0,0.0005041,60]
[314281039,1708147860085,-972.28,0.0005041,60]
[314281040,1708147860094,-500.0,0.0005041,60]
[314281041,1708147860104,-582.50898164,0.0005041,60]
[314281042,1708147860114,-500.0,0.0005041,60]
[314281043,1708147860123,-500.0,0.0005041,60]
[314281044,1708147860133,-500.0,0.0005041,60]
[314281045,1708147860141,-500.0,0.0005041,60]
[314281046,1708147860150,-523.96,0.0005041,60]
[314281047,1708147860159,-571.05609995,0.0005041,60]
[314281048,1708147860169,-500.0,0.0005041,60]
[314281049,1708147860179,-500.0,0.0005041,60]
[314281050,1708147860189,-296.72365968,0.0005041,60]
[314281051,1708147860199,-500.0,0.0005041,60]
[314281052,1708147860208,-500.0,0.0005041,60]
[314281053,1708147860218,-500.0,0.0005041,60]
[314281054,1708147860228,-500.0,0.0005041,60]
[314281055,1708147860238,-500.0,0.0005041,60]
[314281056,1708147860247,-500.0,0.0005041,60]
[314281057,1708147860256,-854.01,0.0005041,60]
[314281058,1708147860266,-500.0,0.0005041,60]
[314281059,1708147860352,-500.0,0.0005041,7]
[314281060,1708147860362,-893.76,0.0005041,60]
[314281061,1708147860372,-1165.59,0.0005041,60]
[314281062,1708147860383,-1495.02,0.0005041,60]
[314281063,1708147860393,-500.0,0.0005041,60]
[314281064,1708147860402,-500.0,0.0005041,60]
[314281065,1708147860411,-574.28532509,0.0005041,60]
[314281066,1708147860420,-500.0,0.0005041,60]
[314281067,1708147860430,-500.0,0.0005041,60]
[314281068,1708147860439,-500.0,0.0005041,60]
[314281069,1708147860448,-500.0,0.0005041,60]
[314281070,1708147860458,-500.0,0.0005041,60]
[314281071,1708147860467,-403.18424984,0.0005041,60]
[314281072,1708147860477,-500.0,0.0005041,60]
[314281073,1708147860486,-174.57816504,0.0005041,60]
[314281074,1708147860496,-500.0,0.0005041,60]
[314281075,1708147860505,-636.17,0.0005041,60]
[314281076,1708147860515,-500.0,0.0005041,60]
[314281077,1708147860524,-5024.34,0.0005041,60]
[314281078,1708147860533,-602.99,0.0005041,60]
[314281079,1708147860542,-500.0,0.0005041,60]
[314281080,1708147860551,-3136.01,0.0005041,60]
[314281081,1708147860560,-307.16614785,0.0005041,60]
[314281082,1708147860569,-500.0,0.0005041,60]
[314281083,1708147860580,-249.08380918,0.0005041,60]